bitfinex/quotes_ETHUSD_20240719
["timestamp","ask_amount","ask_price","bid_price","bid_amount"]
[1721402881815,2.46530142,3451.6,3451.3,5.8917]
[1721402882139,2.46594771,3451.5,3451.3,5.8917]
[1721402882338,1.26343885,3451.4,3451.3,5.8917]
[1721402882487,2.46594771,3451.5,3451.3,5.8917]
[1721402882695,1.26343885,3451.4,3451.3,5.8917]
[1721402883090,1.26343885,3451.5,3451.3,5.8917]
[1721402883291,1.26343885,3451.4,3451.3,5.8917]
[1721402883742,1.20250886,3451.6,3451.3,5.8917]
[1721402883743,1.26343885,3451.5,3451.3,5.8917]
[1721402883904,1.50325523,3451.8,3451.3,5.8917]
[1721402883905,1.20250886,3451.8,3451.3,5.8917]
[1721402884251,1.26326496,3451.7,3451.3,5.8917]
[1721402884404,1.50325523,3452.1,3451.3,5.8917]
[1721402884405,1.20250886,3452.1,3451.3,5.8917]
[1721402884592,1.20250886,3451.9,3451.3,5.8917]
[1721402884787,2.46574657,3451.8,3451.3,5.8917]
[1721402884996,1.26323771,3451.7,3451.3,5.8917]
[1721402885235,1.26337774,3451.6,3451.3,5.8917]
[1721402885441,1.26337774,3451.5,3451.3,5.8917]
[1721402885593,1.20250886,3452.0,3451.3,5.8917]
[1721402885942,1.26322837,3451.9,3451.3,5.8917]
[1721402886107,2.46573723,3451.9,3451.3,5.8917]
[1721402886311,1.26326129,3451.8,3451.3,5.8917]
[1721402886840,1.20250886,3451.7,3451.3,3.619]
[1721402887145,1.20250886,3451.4,3450.8,5.9398]
[1721402887308,2.46577015,3451.3,3450.8,5.9398]
[1721402887490,1.20250886,3451.1,3450.8,3.619]
[1721402887694,1.26326129,3451.0,3450.8,3.619]
[1721402887937,2.46577015,3451.0,3450.8,3.619]
[1721402888232,1.26363414,3450.9,3450.8,3.619]
[1721402888406,1.26362942,3450.9,3450.8,3.619]
[1721402888731,1.26362942,3451.0,3450.8,3.619]
[1721402889240,1.20250886,3451.3,3450.8,3.619]
[1721402889548,2.89763,3451.1,3450.8,3.619]
[1721402889746,1.26365471,3451.0,3450.8,3.619]
[1721402889913,4.14334575,3451.3,3450.8,3.619]
[1721402890098,5.36370315,3451.2,3450.8,3.619]
[1721402890295,2.46611315,3451.1,3450.3,2.3191]
[1721402890524,1.20250886,3450.9,3450.1,0.28188776]
[1721402890696,2.89798,3450.7,3450.1,0.28188776]
[1721402890894,1.26360429,3450.6,3450.3,3.619]
[1721402891126,4.10037886,3450.8,3450.3,3.619]
[1721402891308,1.20250886,3450.8,3450.3,3.619]
[1721402891510,2.89777,3451.0,3450.3,3.619]
[1721402891511,4.10027886,3451.0,3450.3,3.619]
[1721402891703,1.26371947,3450.9,3450.3,3.619]
[1721402892191,4.10008886,3451.2,3450.3,3.619]
[1721402892445,2.89772,3451.0,3450.3,3.619]
[1721402892737,2.89758,3451.2,3450.1,0.28188776]
[1721402892738,1.20250886,3451.2,3450.8,3.619]
[1721402893043,1.26366447,3451.1,3450.8,3.619]
[1721402893196,2.89739,3451.4,3450.8,3.619]
[1721402893197,4.09989886,3451.4,3450.8,3.619]
[1721402893396,1.26363352,3451.3,3450.8,3.619]
[1721402893933,4.16109352,3451.3,3450.8,3.619]
[1721402894151,2.89821,3450.4,3450.1,0.28188776]
[1721402894297,2.94142689,3450.6,3450.1,0.28188776]
[1721402894497,1.26390485,3450.5,3450.1,0.28188776]
[1721402894718,2.89838,3450.2,3450.1,0.28188776]
[1721402894961,4.16228485,3450.2,3450.1,0.28188776]
[1721402895455,2.89838,3450.2,3450.1,0.28188776]
[1721402896017,2.89838,3450.2,3450.1,0.08188776]
[1721402897560,5.79676,3450.2,3450.1,0.08188776]
[1721402897716,2.89838,3450.2,3450.1,0.08188776]
[1721402897918,5.79676,3450.2,3450.1,0.08188776]
[1721402898385,7.06090655,3450.2,3450.1,0.08188776]
[1721402898868,5.79676,3450.2,3450.1,0.08188776]
[1721402899022,7.10425708,3450.2,3450.1,0.08188776]
[1721402899224,5.84013689,3450.2,3450.1,0.08188776]
[1721402899454,7.10428095,3450.2,3450.1,0.08188776]
[1721402899962,5.84013689,3450.2,3450.1,0.08188776]
[1721402900266,5.79676,3450.2,3450.1,0.08188776]
[1721402901168,11.07121689,3450.2,3450.1,7.76e-06]
[1721402901340,11.07121689,3450.2,3449.3,0.1505343]
[1721402901341,11.59588,3449.5,3449.3,0.1505343]
[1721402901667,17.05229811,3449.5,3449.3,0.1505343]
[1721402901848,12.96118853,3449.5,3449.3,0.1505343]
[1721402902053,13.85503995,3449.5,3449.3,0.1505343]
[1721402902264,8.79794,3449.5,3449.3,0.1505343]
[1721402902683,13.39691,3449.5,3449.3,0.1505343]
[1721402902890,14.66148285,3449.5,3449.3,0.1505343]
[1721402903190,8.79794,3449.5,3449.3,0.1505343]
[1721402903350,12.96148114,3449.5,3449.3,0.1505343]
[1721402903547,11.69691,3449.5,3449.3,0.1505343]
[1721402903760,12.9615537,3449.5,3449.3,0.1505343]
[1721402903961,8.79794,3449.5,3449.3,0.1505343]
[1721402904393,2.89897,3449.5,3449.3,0.1505343]
[1721402904684,5.79794,3449.5,3449.3,0.1505343]
[1721402906247,6.2525911,3449.5,3449.3,0.1505343]
[1721402906598,3.3536211,3449.5,3449.3,0.1505343]
[1721402906890,0.4546511,3449.5,3449.3,0.1505343]
[1721402907396,0.4546511,3449.5,3449.4,0.33728014]
[1721402907843,3.39699799,3449.5,3449.4,0.33728014]
[1721402908050,6.29596799,3449.5,3449.4,0.29510668]
[1721402908842,9.29596799,3449.5,3449.4,0.29510668]
[1721402909249,12.19493799,3449.5,3449.4,0.29510668]
[1721402909495,12.19493799,3449.5,3447.8,3.619]
[1721402909496,1.7,3449.1,3446.9,2.3859]
[1721402909727,2.47887689,3449.4,3446.9,2.3859]
[1721402909728,5.80046,3448.0,3446.9,2.3859]
[1721402910478,5.84383689,3448.0,3446.9,2.3859]
[1721402911075,2.90009,3448.2,3446.9,6.0049]
[1721402911280,2.90023,3448.0,3446.9,2.3859]
[1721402911506,5.80046,3448.0,3446.9,2.3859]
[1721402912105,2.90023,3448.0,3446.9,2.3859]
[1721402912306,2.90013,3448.2,3446.9,2.3859]
[1721402912504,5.89997,3448.4,3447.1,3.619]
[1721402912505,2.89998,3448.3,3447.1,3.619]
[1721402912703,3.0,3448.4,3447.1,3.619]
[1721402912704,2.90023,3448.0,3447.1,3.619]
[1721402913323,2.90009,3448.2,3447.1,3.619]
[1721402913479,3.0,3448.4,3447.1,3.619]
[1721402913933,2.89964,3448.7,3447.1,3.619]
[1721402913934,2.89981,3448.5,3447.1,3.619]
[1721402914110,0.30289537,3448.8,3447.9,2.74304453]
[1721402914324,2.89948,3448.9,3447.9,0.32154453]
[1721402914618,0.04337689,3448.9,3447.9,0.32154453]
[1721402914992,2.89991,3448.4,3447.9,0.32154453]
[1721402915300,2.90023,3448.0,3447.9,0.32154453]
[1721402915624,2.90016,3448.1,3447.9,0.32154453]
[1721402915839,2.8999,3448.4,3447.9,0.32154453]
[1721402916125,2.89976,3448.6,3447.9,0.32154453]
[1721402916329,3.0,3448.5,3447.9,0.32154453]
[1721402916627,2.94327689,3448.4,3447.9,0.32154453]
[1721402916924,3.0,3448.6,3447.9,0.32154453]
[1721402917127,10.38965,3448.7,3447.9,0.32154453]
[1721402917128,7.49,3448.7,3447.9,0.32154453]
[1721402917333,2.89939,3449.0,3447.9,0.32154453]
[1721402917507,2.89939,3449.0,3448.0,2.4483]
[1721402917945,2.89933,3449.1,3448.0,2.4483]
[1721402918297,2.89941,3449.0,3448.0,2.4483]
[1721402918607,2.89922,3449.2,3448.1,3.619]
[1721402918994,2.89949,3448.9,3448.1,3.619]
[1721402919299,2.94299689,3448.8,3448.1,3.619]
[1721402919693,2.94299689,3448.8,3448.0,2.4483]
[1721402919926,0.04337689,3448.8,3447.9,0.32154453]
[1721402920232,2.90023,3448.0,3447.9,0.32154453]
[1721402920956,5.80046,3448.0,3447.9,0.32154453]
[1721402922152,2.90023,3448.0,3447.9,0.32154453]
[1721402922331,3.0,3448.5,3447.9,0.32154453]
[1721402922743,2.90004,3448.3,3447.9,0.32154453]
[1721402923455,0.04337689,3448.2,3447.9,0.32154453]
[1721402923809,2.90006,3448.2,3447.9,0.32154453]
[1721402924154,2.90023,3448.0,3447.9,0.32154453]
[1721402924309,2.90009,3448.2,3447.9,0.32154453]
[1721402924510,2.90016,3448.1,3447.9,0.32154453]
[1721402924845,2.89998,3448.3,3447.9,0.32154453]
[1721402925219,2.90008,3448.2,3447.9,0.32154453]
[1721402925540,2.90023,3448.0,3447.9,0.32154453]
[1721402925739,2.9001,3448.2,3447.9,0.32154453]
[1721402925902,5.89983,3448.5,3447.9,0.32154453]
[1721402926110,3.0,3448.5,3447.9,0.32154453]
[1721402926348,2.89991,3448.4,3447.9,0.32154453]
[1721402926517,2.89998,3448.3,3447.9,0.32154453]
[1721402927911,2.90005,3448.3,3447.9,0.32154453]
[1721402928129,2.90006,3448.2,3447.9,0.32154453]
[1721402928542,2.8999,3448.4,3447.9,0.32154453]
[1721402928723,5.89982,3448.5,3447.9,0.32154453]
[1721402929042,7.49,3448.6,3447.9,0.32154453]
[1721402929343,7.49,3448.6,3448.0,2.3253]
[1721402929540,3.3536811,3449.5,3448.1,3.619]
[1721402929541,2.89939,3449.0,3448.1,3.619]
[1721402930040,3.1970207,3449.2,3448.1,3.619]
[1721402930346,0.34117759,3449.2,3448.1,3.619]
[1721402930534,2.89957,3448.8,3448.1,3.619]
[1721402930848,0.04337689,3448.7,3448.1,3.619]
[1721402931145,2.89945,3449.0,3448.1,3.619]
[1721402931352,2.89948,3448.9,3448.1,3.619]
[1721402931651,2.89936,3449.1,3448.1,3.619]
[1721402932039,2.89939,3449.0,3448.1,3.619]
[1721402932208,2.89948,3448.9,3448.1,3.619]
[1721402932407,2.94268689,3449.1,3448.1,3.619]
[1721402932730,2.89939,3449.0,3448.1,3.619]
[1721402933130,2.89957,3448.8,3448.1,3.619]
[1721402933342,2.94302689,3448.7,3448.1,3.619]
[1721402933640,2.89949,3448.9,3448.1,3.619]
[1721402933840,2.89965,3448.7,3448.1,3.619]
[1721402934009,2.89956,3448.8,3448.1,3.619]
[1721402934207,2.89936,3449.1,3448.1,3.619]
[1721402934409,1.2646279,3449.0,3448.1,3.619]
[1721402934658,3.1970707,3449.2,3448.1,3.619]
[1721402934868,3.1970707,3449.2,3448.8,3.619]
[1721402934869,1.26455843,3449.1,3448.8,3.619]
[1721402935149,2.8988,3449.7,3448.9,2.273]
[1721402935442,0.49802799,3449.5,3448.9,2.273]
[1721402935743,0.04337689,3449.4,3448.9,2.273]
[1721402935946,0.4546511,3449.5,3448.9,2.273]
[1721402936712,0.4546511,3449.5,3449.3,3.619]
[1721402936908,2.89845,3450.2,3449.3,3.619]
[1721402937112,2.89863,3449.9,3449.3,3.619]
[1721402937314,7.49,3450.8,3448.3,2.89995]
[1721402937315,0.04337689,3449.8,3448.3,2.3002]
[1721402937642,2.89924,3449.2,3448.3,2.3002]
[1721402937814,1.26416216,3449.1,3448.3,2.3002]
[1721402938418,2.89906,3449.4,3448.5,3.619]
[1721402938661,1.26440559,3449.3,3448.5,3.619]
[1721402938826,1.26440559,3449.2,3448.5,3.619]
[1721402939031,5.89906,3449.4,3448.5,3.619]
[1721402939231,4.16351369,3449.3,3448.5,3.619]
[1721402939540,2.89953,3448.9,3448.5,3.619]
[1721402939724,2.94284689,3448.9,3448.5,3.619]
[1721402939927,0.04337689,3448.9,3448.5,3.619]
[1721402940259,1.26441882,3448.8,3448.5,3.619]
[1721402940438,2.94276689,3449.0,3448.5,3.619]
[1721402940756,1.26444397,3448.9,3448.5,3.619]
[1721402940956,1.26444397,3448.8,3448.5,3.619]
[1721402941176,2.8991,3449.4,3448.5,3.619]
[1721402941368,1.2644155,3449.3,3448.5,3.619]
[1721402941667,1.2644155,3449.2,3448.5,3.619]
[1721402941816,1.2644155,3449.1,3448.5,3.619]
[1721402942016,1.26441162,3449.0,3448.5,3.619]
[1721402942218,0.04337689,3448.9,3448.5,3.619]
[1721402942537,1.26441162,3448.8,3448.5,3.619]
[1721402943046,1.26441162,3448.7,3448.5,3.619]
[1721402943247,1.26441162,3448.6,3448.5,3.619]
[1721402943413,1.26441162,3448.8,3448.5,3.619]
[1721402943618,1.26441162,3448.7,3448.5,3.619]
[1721402943824,1.26441162,3448.6,3448.5,3.619]
[1721402944238,3.79471039,3449.2,3448.5,3.619]
[1721402944239,2.89957,3448.8,3448.5,3.619]
[1721402944417,1.26441162,3448.7,3448.5,3.619]
[1721402944612,1.26441162,3448.7,3448.3,2.3002]
[1721402944946,4.16406162,3448.7,3448.0,3.619]
[1721402945142,2.8999,3448.4,3448.0,3.619]
[1721402945435,0.89543039,3448.2,3448.0,3.619]
[1721402945640,1.26474907,3448.1,3448.0,3.619]
[1721402946017,1.26474907,3448.2,3448.0,3.619]
[1721402946245,1.26474907,3448.1,3448.0,3.619]
[1721402946434,0.89543039,3448.5,3448.0,3.619]
[1721402946634,1.26458247,3448.4,3448.0,3.619]
[1721402947217,1.19213958,3448.7,3448.0,3.619]
[1721402947218,1.26458247,3448.3,3448.0,3.619]
[1721402947439,0.89543039,3448.7,3448.1,0.58742]
[1721402947651,1.26443229,3448.6,3448.5,3.619]
[1721402947874,1.26443229,3448.7,3448.5,3.619]
[1721402948035,1.26443229,3448.6,3448.5,3.619]
[1721402948240,0.89543039,3448.9,3448.6,2.2577]
[1721402948475,1.26445064,3448.8,3448.6,2.2577]
[1721402949146,1.26440368,3448.7,3448.6,2.2577]
[1721402949558,1.26440368,3448.7,3448.0,6.0687]
[1721402949759,2.8999,3448.4,3447.5,3.619]
[1721402949985,1.26440368,3448.3,3448.0,3.619]
[1721402950186,0.89868535,3448.6,3448.0,3.619]
[1721402950335,1.19213958,3448.8,3447.9,2.402]
[1721402950336,1.26448511,3448.5,3447.9,2.402]
[1721402950645,0.89868535,3448.7,3447.9,2.402]
[1721402950970,1.26446126,3448.6,3448.4,3.619]
[1721402951179,1.26446126,3448.5,3448.4,3.619]
[1721402951476,1.26452614,3448.5,3448.4,3.619]
[1721402951974,2.16321149,3448.5,3448.4,3.619]
[1721402952175,2.16321149,3448.5,3447.9,2.402]
[1721402952176,2.45666572,3448.5,3447.9,6.021]
[1721402952475,0.89890402,3448.2,3447.9,6.021]
[1721402952683,2.16343016,3448.1,3447.9,3.619]
[1721402952843,2.90055,3447.7,3446.9,3.619]
[1721402953191,2.90091,3447.2,3445.9,3.8241564]
[1721402953396,0.89816562,3446.5,3445.9,4.20657204]
[1721402953622,1.19755416,3446.6,3445.9,4.20657204]
[1721402953623,0.89816562,3446.6,3445.9,4.20657204]
[1721402953882,2.16352115,3446.5,3445.9,4.20657204]
[1721402954053,1.26535553,3446.4,3445.9,0.58757204]
[1721402954253,0.89816562,3446.7,3446.3,3.619]
[1721402954458,0.89816562,3446.9,3446.4,0.3619]
[1721402954674,0.89816562,3447.2,3446.9,2.3689]
[1721402954903,1.49739118,3447.5,3447.1,3.619]
[1721402954904,0.89816562,3447.5,3447.1,3.619]
[1721402955039,1.26493177,3447.4,3447.1,3.619]
[1721402955388,0.89816562,3448.0,3447.1,4.21779]
[1721402955557,2.16287087,3448.0,3447.8,3.619]
[1721402955890,1.19755416,3448.2,3447.9,2.3738]
[1721402955891,0.89816562,3448.2,3447.9,2.3738]
[1721402956098,1.26462719,3448.1,3447.9,2.3738]
[1721402956305,2.16279281,3448.1,3447.9,2.3738]
[1721402956624,0.89816562,3448.2,3447.9,2.3738]
[1721402956762,0.89816562,3448.3,3447.9,2.97308]
[1721402956970,0.89816562,3448.5,3447.9,2.97308]
[1721402957197,0.89816562,3448.6,3448.3,3.619]
[1721402957396,0.89816562,3448.4,3448.3,3.619]
[1721402957602,2.1626799,3448.4,3448.3,3.619]
[1721402957807,1.26451428,3448.4,3448.3,3.619]
[1721402958020,0.89816562,3448.7,3448.3,3.9809]
[1721402958315,1.26443521,3448.6,3448.3,3.619]
[1721402958878,2.16260083,3448.6,3448.3,3.619]
[1721402959084,1.26443521,3448.5,3448.3,3.619]
[1721402959428,2.46198937,3448.5,3447.9,2.3738]
[1721402959581,0.89828484,3448.2,3447.9,2.3738]
[1721402959773,2.16272005,3448.1,3447.9,2.3738]
[1721402960007,2.16272005,3448.0,3447.9,2.3738]
[1721402960378,2.1630198,3448.0,3447.9,2.3738]
[1721402960815,1.26473496,3448.0,3447.9,2.3738]
[1721402961578,2.1630198,3448.1,3447.9,2.3738]
[1721402961787,1.26466649,3448.0,3447.9,2.3738]
[1721402962013,1.26466159,3448.0,3447.9,2.3738]
[1721402963475,1.26466325,3448.0,3447.9,2.3738]
[1721402963732,0.89828484,3448.2,3447.9,2.3738]
[1721402964025,0.89828484,3448.3,3447.9,2.3738]
[1721402964234,1.26457562,3448.2,3447.9,2.3738]
[1721402964592,2.16286046,3448.2,3447.9,2.3238]
[1721402964791,0.89828484,3448.3,3447.9,2.3238]
[1721402965030,2.16288983,3448.2,3447.9,2.3238]
[1721402965331,1.49790161,3448.5,3447.9,2.3238]
[1721402965332,0.89828484,3448.3,3447.9,2.3238]
[1721402965544,1.26455948,3448.2,3447.9,2.3238]
[1721402965838,2.16284432,3448.2,3447.9,2.3238]
[1721402966008,1.26455948,3448.1,3447.9,2.3238]
[1721402966444,0.89828484,3448.3,3447.9,2.3238]
[1721402966639,1.26459977,3448.2,3447.9,2.3238]
[1721402967462,0.89828484,3448.1,3447.8,3.619]
[1721402967625,2.7625087,3448.0,3447.8,3.619]
[1721402967829,2.90042,3447.8,3447.3,3.619]
[1721402968080,1.19841912,3447.5,3447.3,3.619]
[1721402968375,1.26459977,3447.4,3447.3,3.619]
[1721402968864,1.26459977,3447.4,3446.4,3.619]
[1721402969074,0.89875108,3446.9,3446.4,3.619]
[1721402969278,2.16335085,3446.8,3446.4,3.619]
[1721402969464,0.89875108,3446.9,3446.4,3.619]
[1721402969774,0.89875108,3447.0,3446.4,3.619]
[1721402969995,2.16384057,3446.9,3446.4,3.619]
[1721402970187,1.26508949,3446.8,3446.4,3.619]
[1721402970406,0.89875108,3447.0,3446.4,3.619]
[1721402970604,1.26514679,3446.9,3446.4,3.619]
[1721402970765,0.89875108,3447.1,3446.4,4.21739]
[1721402971100,0.89875108,3447.7,3446.9,3.619]
[1721402971305,0.89875108,3447.7,3447.0,0.55]
[1721402971306,2.16365304,3447.6,3447.0,0.55]
[1721402971486,1.26490196,3447.5,3446.9,3.619]
[1721402971996,0.89875108,3447.7,3447.5,2.2515]
[1721402972151,1.26485005,3447.6,3447.5,2.2515]
[1721402972354,0.89875108,3447.7,3447.4,3.619]
[1721402972606,0.89875108,3447.8,3447.4,3.619]
[1721402972750,1.26482525,3447.7,3447.4,3.619]
[1721402973406,0.89875108,3447.8,3447.4,3.9809]
[1721402973586,0.89875108,3448.0,3447.4,3.9809]
[1721402973757,1.2647329,3447.9,3447.4,3.619]
[1721402973953,2.16348398,3447.9,3447.4,3.619]
[1721402974155,1.2647329,3447.8,3447.4,3.619]
[1721402974377,0.89875108,3448.0,3447.4,3.619]
[1721402974588,0.89875108,3447.8,3447.4,3.619]
[1721402974847,0.89875108,3447.9,3447.4,3.619]
[1721402975052,1.26478115,3447.8,3447.4,3.9809]
[1721402975294,1.26478115,3447.8,3446.9,2.4276]
[1721402975498,0.89875108,3447.8,3447.1,3.619]
[1721402975705,1.26480909,3447.7,3447.1,3.619]
[1721402975909,0.89875108,3447.6,3447.1,3.619]
[1721402976054,0.89875108,3447.7,3447.1,3.619]
[1721402976260,2.16358412,3447.6,3447.1,3.619]
[1721402976594,0.89875108,3447.4,3447.1,3.619]
[1721402976781,1.26483304,3447.3,3447.1,3.619]
[1721402977194,0.89875108,3447.5,3447.1,3.619]
[1721402977372,1.19833477,3447.6,3447.1,3.619]
[1721402977373,2.1636781,3447.4,3447.1,3.619]
[1721402977583,2.1636781,3447.3,3446.6,3.619]
[1721402977783,2.1636781,3447.2,3446.6,3.619]
[1721402977976,1.26499354,3447.1,3446.7,0.3619]
[1721402978181,0.89875108,3447.3,3447.0,3.619]
[1721402978530,1.2650106,3447.2,3447.0,3.619]
[1721402978660,0.89875108,3447.4,3447.0,3.619]
[1721402978864,2.16375911,3447.3,3447.0,3.619]
[1721402979178,1.26500819,3447.2,3447.0,3.619]
[1721402979502,0.84875108,3447.4,3447.0,3.619]
[1721402979910,1.19833477,3447.6,3447.0,3.619]
[1721402980092,1.49775906,3448.0,3447.5,3.619]
[1721402980302,1.26471804,3447.9,3447.5,3.619]
[1721402980611,1.19833477,3448.1,3447.5,3.619]
[1721402980612,1.26471804,3447.8,3447.5,3.619]
[1721402980781,1.19833477,3448.0,3447.5,3.619]
[1721402981109,1.26480934,3447.9,3447.5,3.619]
[1721402981279,1.26480934,3447.8,3447.5,3.619]
[1721402981485,1.19833477,3448.0,3447.5,3.619]
[1721402981810,1.26482601,3447.9,3447.5,3.619]
[1721402982102,1.19833477,3448.3,3447.5,3.9809]
[1721402982309,1.26468192,3448.2,3447.5,3.9809]
[1721402983113,1.19833477,3448.5,3448.1,3.619]
[1721402983434,1.49806006,3448.7,3448.1,3.619]
[1721402983435,1.2646278,3448.4,3448.1,3.619]
[1721402983569,1.19833477,3448.7,3448.1,3.619]
[1721402983773,1.49806006,3448.9,3448.1,3.619]
[1721402983774,1.26447691,3448.6,3448.1,3.619]
[1721402983976,1.26447691,3448.5,3448.1,3.619]
[1721402984278,1.19833477,3448.7,3448.1,3.619]
[1721402984483,1.19833477,3448.8,3448.1,3.619]
[1721402984681,1.26444926,3448.7,3448.1,3.619]
[1721402984879,1.21444926,3448.7,3448.1,4.21969]
[1721402985115,1.21444926,3448.7,3448.6,3.619]
[1721402985323,1.19833477,3449.0,3448.6,3.619]
[1721402985812,1.49886641,3449.2,3448.6,3.619]
[1721402985813,1.19833477,3449.2,3448.6,3.619]
[1721402986048,1.19833477,3449.3,3448.6,3.619]
[1721402986280,1.19833477,3449.3,3449.1,3.619]
[1721402986460,1.19833477,3449.5,3449.1,3.619]
[1721402987333,1.19833477,3449.4,3448.6,3.619]
[1721402987546,1.7986397,3449.9,3448.6,3.619]
[1721402987547,1.24171166,3449.3,3448.6,3.619]
[1721402987766,1.19833477,3449.2,3448.6,3.619]
[1721402988232,1.19833477,3449.3,3449.1,3.619]
[1721402988433,1.19833477,3449.6,3449.1,3.619]
[1721402989719,4.09728477,3449.6,3449.1,3.619]
[1721402989925,2.89937,3449.1,3448.6,3.619]
[1721402990147,1.19833477,3449.1,3448.1,3.619]
[1721402990304,1.19833477,3448.9,3448.1,3.619]
[1721402990854,1.19833477,3448.8,3448.1,3.619]
[1721402991005,4.09781477,3448.9,3448.1,3.619]
[1721402991206,1.19833477,3448.8,3448.1,3.619]
[1721402991940,2.89965,3448.7,3448.1,3.619]
[1721402992357,1.19833477,3448.5,3447.6,3.619]
[1721402992698,1.19833477,3448.4,3447.6,3.619]
[1721402992971,1.19833477,3448.5,3447.6,3.619]
[1721402993336,1.19833477,3448.7,3448.1,3.619]
[1721402993533,1.19833477,3448.8,3448.1,3.619]
[1721402994177,1.24171166,3448.7,3448.1,3.619]
[1721402994386,1.19833477,3448.6,3447.6,3.619]
[1721402994683,2.89998,3448.3,3447.6,3.619]
[1721402994895,4.09850477,3448.1,3447.6,3.619]
[1721402995169,1.19833477,3447.9,3447.1,3.619]
[1721402995380,1.19833477,3447.8,3447.1,3.619]
[1721402995739,1.19833477,3447.9,3447.1,3.619]
[1721402996230,1.19833477,3447.9,3447.1,3.9809]
[1721402996439,1.19833477,3447.8,3447.1,3.9809]
[1721402996636,1.7968755,3448.3,3447.1,3.9809]
[1721402996637,1.19833477,3447.9,3447.1,3.9809]
[1721402996839,1.19833477,3448.1,3447.6,3.619]
[1721402997082,1.19833477,3448.0,3447.6,5.8943]
[1721402997377,1.19833477,3448.3,3447.6,6.48373]
[1721402997599,1.19833477,3448.6,3448.2,3.619]
[1721402997943,1.19833477,3448.5,3448.2,3.619]
[1721402998139,2.89932,3449.1,3448.2,3.619]
[1721402998140,1.19833477,3448.4,3448.2,3.619]
[1721402999150,1.19833477,3448.5,3448.2,3.619]
[1721402999480,1.19833477,3448.5,3447.7,3.619]
[1721402999481,1.19833477,3448.4,3447.7,3.619]
[1721402999645,1.19833477,3448.2,3447.7,3.619]
[1721403000069,1.19833477,3448.5,3447.7,3.9809]
[1721403000269,4.69789278,3448.9,3447.7,3.9809]
[1721403000270,1.19833477,3448.4,3447.7,3.9809]
[1721403000588,1.19833477,3448.4,3448.2,3.619]
[1721403000736,1.79831984,3448.8,3448.2,3.619]
[1721403000737,1.19833477,3448.8,3448.2,3.619]
[1721403000944,1.49859986,3448.9,3448.2,3.619]
[1721403000945,1.19833477,3448.7,3448.2,3.619]
[1721403001181,4.09829477,3448.4,3447.7,3.619]
[1721403001476,1.19833477,3448.2,3447.7,3.619]
[1721403001681,2.89975,3448.6,3447.7,3.619]
[1721403001682,1.19833477,3448.3,3447.7,3.619]
[1721403002065,1.19833477,3448.4,3447.7,3.619]
[1721403002270,1.19833477,3448.5,3447.7,4.20886]
[1721403002454,1.19833477,3448.4,3447.7,3.619]
[1721403002944,1.19833477,3448.2,3447.2,3.619]
[1721403003140,4.09882477,3447.7,3447.2,3.619]
[1721403003341,1.19833477,3447.5,3447.2,3.619]
[1721403003654,1.49882926,3447.7,3447.2,3.619]
[1721403003655,1.19833477,3447.7,3447.2,3.619]
[1721403004175,1.19833477,3447.9,3447.2,3.94324295]
[1721403004383,1.19833477,3447.9,3447.7,3.619]
[1721403004591,1.19833477,3448.0,3447.2,3.619]
[1721403004748,1.19833477,3447.9,3447.2,3.619]
[1721403004942,1.26483892,3447.8,3447.2,3.619]
[1721403005177,1.26487676,3447.7,3447.3,0.3619]
[1721403005347,1.19833477,3448.1,3447.3,0.3619]
[1721403005542,2.46308453,3448.0,3447.3,0.3619]
[1721403005748,1.26474976,3447.9,3447.3,0.3619]
[1721403006076,1.26474976,3447.9,3447.2,3.619]
[1721403006386,1.26474976,3447.9,3447.7,3.619]
[1721403006547,1.26474976,3447.8,3447.7,3.619]
[1721403006747,1.19833477,3448.3,3447.7,3.619]
[1721403007062,2.46299059,3448.2,3447.8,2.3612]
[1721403007267,1.19833477,3448.4,3447.9,0.59802]
[1721403007469,1.19833477,3448.7,3448.3,3.619]
[1721403007686,1.26450954,3448.6,3448.3,3.619]
[1721403008051,1.26450954,3448.5,3448.3,3.619]
[1721403008256,1.19833477,3448.8,3448.3,3.619]
[1721403008488,1.26440305,3448.7,3448.4,0.3619]
[1721403008803,1.19833477,3449.1,3448.4,3.26178]
[1721403008961,1.26424597,3449.0,3448.9,3.619]
[1721403009154,23.04857,3450.0,3448.9,3.619]
[1721403009155,2.46258074,3449.2,3448.9,3.619]
[1721403009390,1.26424597,3449.1,3448.9,3.619]
[1721403009567,2.46258074,3449.1,3448.5,2.3056]
[1721403009766,2.46258074,3449.0,3448.5,2.3056]
[1721403009977,1.26424597,3448.9,3448.5,2.3056]
[1721403010255,1.26424597,3448.9,3448.4,3.619]
[1721403010256,1.26424597,3448.8,3448.4,3.619]
[1721403010491,1.19833477,3449.1,3448.4,3.9809]
[1721403010703,1.26433862,3449.0,3448.9,3.619]
[1721403010908,1.26433862,3449.1,3448.9,3.619]
[1721403011073,1.19833477,3449.3,3448.9,3.619]
[1721403011424,1.26429267,3449.2,3448.9,3.619]
[1721403011883,1.26429267,3449.1,3448.9,3.619]
[1721403012195,1.19833477,3449.3,3448.9,3.619]
[1721403012398,1.26430404,3449.2,3448.9,3.619]
[1721403012891,2.46263881,3449.2,3448.9,3.619]
[1721403013124,1.26430404,3449.1,3448.9,3.619]
[1721403013464,1.26430404,3449.1,3447.9,2.93402]
[1721403013465,1.26430404,3449.1,3448.4,3.619]
[1721403013662,2.89998,3448.3,3447.6,3.619]
[1721403014004,1.49940508,3447.9,3446.1,2.3931]
[1721403014212,2.9011,3447.0,3446.1,2.3931]
[1721403014362,1.19868258,3446.9,3446.1,2.3931]
[1721403014564,1.26518115,3446.8,3446.1,2.3931]
[1721403014883,1.26518115,3446.7,3445.9,0.2051564]
[1721403015235,1.26518115,3446.7,3446.0,3.6770337]